[Event "2026 European Womens Championship"]
[Site "Batumi, GE"]
[Date "2026.05.29"]
[Round "5"]
[White "Koghuashvili, Tekla"]
[Black "Velikic, Adela"]
[Result "0-1"]
[Board "82"]
[TimeControl "5400+30"]
[WhiteFideId "13621564"]
[BlackFideId "913553"]
[WhiteElo "1921"]
[BlackElo "2277"]
[BlackTitle "WIM"]
[WhiteClock "0:35:29"]
[BlackClock "0:01:06"]
[Variant "Standard"]

1. e4 {[%clk 1:30:58]}  c5 {[%clk 1:29:22]} 2. c3 {[%clk 1:31:23]}  Nf6 {[%clk 1:29:47]} 3. e5 {[%clk 1:31:49]}  Nd5 {[%clk 1:30:11]}
4. d4 {[%clk 1:32:16]}  cxd4 {[%clk 1:30:29]} 5. cxd4 {[%clk 1:32:40]}  d6 {[%clk 1:30:45]} 6. Nf3 {[%clk 1:32:59]}  Nc6 {[%clk 1:31:03]}
7. Bc4 {[%clk 1:33:23]}  dxe5 {[%clk 1:31:25]} 8. Nxe5 {[%clk 1:26:03]}  Bf5 {[%clk 1:31:40]} 9. Qb3 {[%clk 1:18:51]}  e6 {[%clk 1:31:49]}
10. Qxb7 {[%clk 1:15:18]}  Bb4+ {[%clk 1:31:54]} 11. Nd2 {[%clk 1:13:41]}  Nxe5 {[%clk 1:31:46]} 12. dxe5 {[%clk 1:11:53]}  O-O {[%clk 1:31:41]}
13. Bxd5 {[%clk 1:09:17]}  Rb8 {[%clk 1:27:41]} 14. Qc6 {[%clk 1:06:53]}  Rb6 {[%clk 1:12:32]} 15. Qc4 {[%clk 1:06:26]}  exd5 {[%clk 1:10:32]}
16. Qf4 {[%clk 1:06:17]}  Bd3 {[%clk 1:07:16]} 17. a3 {[%clk 1:04:09]}  Bxd2+ {[%clk 1:02:31]} 18. Qxd2 {[%clk 1:02:09]}  Rb3 {[%clk 0:57:51]}
19. h4 {[%clk 0:52:54]}  Re8 {[%clk 0:48:32]} 20. f4 {[%clk 0:52:24]}  Bc4 {[%clk 0:46:08]} 21. Qd4 {[%clk 0:50:31]}  f6 {[%clk 0:43:48]}
22. Bd2 {[%clk 0:44:02]}  fxe5 {[%clk 0:14:08]} 23. fxe5 {[%clk 0:41:34]}  Rd3 {[%clk 0:08:53]} 24. Qf4 {[%clk 0:41:45]}  Rf8 {[%clk 0:07:58]}
25. Qg5 {[%clk 0:38:49]}  Qb6 {[%clk 0:07:29]} 26. O-O-O {[%clk 0:38:39]}  Bb3 {[%clk 0:06:06]} 27. Rdf1 {[%clk 0:38:55]}  Rc8+ {[%clk 0:04:09]}
28. Kb1 {[%clk 0:38:58]}  Bc2+ {[%clk 0:00:37]} 29. Kc1 {[%clk 0:37:39]}  Ba4+ {[%clk 0:00:38]} 30. Kb1 {[%clk 0:36:57]}  Rxa3 {[%clk 0:00:39]}
31. b4 {[%clk 0:35:53]}  Bc2+ {[%clk 0:00:41]} 32. Kb2 {[%clk 0:35:29]}  Rb3+ {[%clk 0:01:06]} 0-1

[Event "2026 European Womens Championship"]
[Site "Batumi, GE"]
[Date "2026.05.29"]
[Round "5"]
[White "Tsiganova, Monika"]
[Black "Khotenashvili, Bella"]
[Result "0-1"]
[Board "83"]
[TimeControl "5400+30"]
[WhiteFideId "4500199"]
[BlackFideId "13602640"]
[WhiteElo "2039"]
[BlackElo "2415"]
[WhiteTitle "WIM"]
[BlackTitle "GM"]
[WhiteClock "0:08:15"]
[BlackClock "0:09:52"]
[Variant "Standard"]

1. d4 {[%clk 1:30:56]}  Nf6 {[%clk 1:30:43]} 2. c4 {[%clk 1:30:46]}  g6 {[%clk 1:31:01]} 3. Nc3 {[%clk 1:31:05]}  d5 {[%clk 1:31:23]}
4. Nf3 {[%clk 1:31:06]}  Bg7 {[%clk 1:31:42]} 5. Qb3 {[%clk 1:30:24]}  dxc4 {[%clk 1:29:52]} 6. Qxc4 {[%clk 1:30:44]}  O-O {[%clk 1:29:28]}
7. e4 {[%clk 1:29:30]}  c6 {[%clk 1:26:01]} 8. Be2 {[%clk 1:22:40]}  a5 {[%clk 1:17:31]} 9. O-O {[%clk 0:54:32]}  Na6 {[%clk 1:11:32]}
10. Rd1 {[%clk 0:49:14]}  Nb4 {[%clk 1:05:44]} 11. d5 {[%clk 0:41:38]}  cxd5 {[%clk 1:04:59]} 12. exd5 {[%clk 0:41:55]}  Bf5 {[%clk 0:52:36]}
13. Nd4 {[%clk 0:40:05]}  Rc8 {[%clk 0:53:00]} 14. Qb3 {[%clk 0:39:11]}  Be4 {[%clk 0:38:04]} 15. Nxe4 {[%clk 0:35:27]}  Nxe4 {[%clk 0:37:42]}
16. Nb5 {[%clk 0:28:43]}  Qd7 {[%clk 0:22:10]} 17. Qf3 {[%clk 0:21:45]}  f5 {[%clk 0:20:32]} 18. a3 {[%clk 0:14:21]}  Nxd5 {[%clk 0:18:47]}
19. Qb3 {[%clk 0:14:00]}  e6 {[%clk 0:18:47]} 20. Be3 {[%clk 0:09:37]}  Nc5 {[%clk 0:14:19]} 21. Qc4 {[%clk 0:08:53]}  Nxe3 {[%clk 0:13:24]}
22. fxe3 {[%clk 0:09:10]}  Qe7 {[%clk 0:13:41]} 23. Nd4 {[%clk 0:08:13]}  Bh6 {[%clk 0:10:17]} 24. b4 {[%clk 0:07:54]}  Bxe3+ {[%clk 0:10:23]}
25. Kh1 {[%clk 0:08:15]}  Ne4 {[%clk 0:09:52]} 0-1

[Event "2026 European Womens Championship"]
[Site "Batumi, GE"]
[Date "2026.05.29"]
[Round "5"]
[White "Osmak, Yuliia"]
[Black "Calzetta Ruiz, Monica"]
[Result "1-0"]
[Board "84"]
[TimeControl "5400+30"]
[WhiteFideId "14101602"]
[BlackFideId "2204185"]
[WhiteElo "2451"]
[BlackElo "2199"]
[WhiteTitle "IM"]
[BlackTitle "WGM"]
[WhiteClock "0:03:13"]
[BlackClock "0:01:21"]
[Variant "Standard"]

1. d4 {[%clk 1:30:58]}  d5 {[%clk 1:30:52]} 2. c4 {[%clk 1:31:17]}  e6 {[%clk 1:31:16]} 3. Nc3 {[%clk 1:31:29]}  c5 {[%clk 1:31:37]}
4. cxd5 {[%clk 1:31:48]}  exd5 {[%clk 1:31:59]} 5. Nf3 {[%clk 1:32:02]}  Nc6 {[%clk 1:32:16]} 6. g3 {[%clk 1:31:53]}  Nf6 {[%clk 1:32:35]}
7. a3 {[%clk 1:32:03]}  Bg4 {[%clk 1:17:34]} 8. Be3 {[%clk 1:09:49]}  Bxf3 {[%clk 1:05:37]} 9. exf3 {[%clk 1:10:09]}  c4 {[%clk 1:06:01]}
10. Bg2 {[%clk 1:06:56]}  Be7 {[%clk 1:05:46]} 11. O-O {[%clk 1:05:51]}  O-O {[%clk 1:05:45]} 12. g4 {[%clk 0:57:47]}  Qa5 {[%clk 0:53:28]}
13. g5 {[%clk 0:51:18]}  Ne8 {[%clk 0:51:56]} 14. f4 {[%clk 0:51:39]}  Nc7 {[%clk 0:50:02]} 15. f5 {[%clk 0:49:49]}  Rfd8 {[%clk 0:49:16]}
16. Qg4 {[%clk 0:36:40]}  Rac8 {[%clk 0:35:10]} 17. f6 {[%clk 0:27:18]}  Bf8 {[%clk 0:35:22]} 18. h4 {[%clk 0:26:48]}  Ne6 {[%clk 0:19:54]}
19. h5 {[%clk 0:24:18]}  Rd6 {[%clk 0:14:40]} 20. g6 {[%clk 0:19:57]}  Qd8 {[%clk 0:10:00]} 21. fxg7 {[%clk 0:13:03]}  Bxg7 {[%clk 0:10:23]}
22. gxf7+ {[%clk 0:10:25]}  Kxf7 {[%clk 0:10:50]} 23. h6 {[%clk 0:07:50]}  Bxd4 {[%clk 0:09:00]} 24. Nb5 {[%clk 0:07:12]}  Bxb2 {[%clk 0:08:14]}
25. Qf5+ {[%clk 0:07:04]}  Ke7 {[%clk 0:02:33]} 26. Qxh7+ {[%clk 0:04:55]}  Kf6 {[%clk 0:02:11]} 27. Nxd6 {[%clk 0:04:13]}  Qxd6 {[%clk 0:02:38]}
28. Rad1 {[%clk 0:03:39]}  d4 {[%clk 0:02:12]} 29. Qxb7 {[%clk 0:01:01]}  Rg8 {[%clk 0:01:22]} 30. h7 {[%clk 0:02:23]}  Rxg2+ {[%clk 0:01:24]}
31. Kxg2 {[%clk 0:02:47]}  Qd5+ {[%clk 0:01:38]} 32. f3 {[%clk 0:02:48]}  Qh5 {[%clk 0:01:51]} 33. Rh1 {[%clk 0:02:50]}  Qg6+ {[%clk 0:01:21]}
34. Kf1 {[%clk 0:03:13]} 1-0

[Event "2026 European Womens Championship"]
[Site "Batumi, GE"]
[Date "2026.05.29"]
[Round "5"]
[White "Sivanandan, Bodhana"]
[Black "Peycheva, Gergana"]
[Result "1-0"]
[Board "85"]
[TimeControl "5400+30"]
[WhiteFideId "497592"]
[BlackFideId "2916711"]
[WhiteElo "2374"]
[BlackElo "2186"]
[WhiteTitle "FM"]
[BlackTitle "FM"]
[WhiteClock "0:38:24"]
[BlackClock "0:04:08"]
[Variant "Standard"]

1. e4 {[%clk 1:23:44]}  c5 {[%clk 1:30:36]} 2. Nf3 {[%clk 1:23:56]}  Nc6 {[%clk 1:30:23]} 3. Bb5 {[%clk 1:24:04]}  g6 {[%clk 1:30:30]}
4. O-O {[%clk 1:24:06]}  Bg7 {[%clk 1:30:49]} 5. Re1 {[%clk 1:24:06]}  Nf6 {[%clk 1:30:44]} 6. c3 {[%clk 1:24:03]}  O-O {[%clk 1:30:19]}
7. d4 {[%clk 1:24:01]}  d5 {[%clk 1:30:06]} 8. e5 {[%clk 1:23:59]}  Ne4 {[%clk 1:29:04]} 9. Bxc6 {[%clk 1:24:00]}  bxc6 {[%clk 1:29:19]}
10. Be3 {[%clk 1:23:31]}  Rb8 {[%clk 1:24:31]} 11. Qc1 {[%clk 1:22:56]}  cxd4 {[%clk 1:20:49]} 12. cxd4 {[%clk 1:22:58]}  f6 {[%clk 1:18:27]}
13. Nc3 {[%clk 1:17:01]}  g5 {[%clk 1:17:18]} 14. Nd2 {[%clk 1:06:04]}  Nxd2 {[%clk 1:05:13]} 15. Qxd2 {[%clk 1:05:48]}  h6 {[%clk 0:58:36]}
16. f4 {[%clk 1:00:23]}  Qb6 {[%clk 0:45:07]} 17. b3 {[%clk 0:57:08]}  Bf5 {[%clk 0:32:29]} 18. Rac1 {[%clk 0:50:33]}  Qb4 {[%clk 0:29:57]}
19. Na4 {[%clk 0:40:40]}  Qxd2 {[%clk 0:25:14]} 20. Bxd2 {[%clk 0:41:02]}  gxf4 {[%clk 0:25:39]} 21. Bxf4 {[%clk 0:40:05]}  Rb4 {[%clk 0:25:57]}
22. Rcd1 {[%clk 0:39:05]}  fxe5 {[%clk 0:19:33]} 23. Bxe5 {[%clk 0:39:22]}  Bxe5 {[%clk 0:19:32]} 24. Rxe5 {[%clk 0:38:54]}  e6 {[%clk 0:17:46]}
25. h3 {[%clk 0:35:17]}  Rf6 {[%clk 0:17:48]} 26. Nc5 {[%clk 0:34:46]}  Rg6 {[%clk 0:17:06]} 27. Kh2 {[%clk 0:32:48]}  h5 {[%clk 0:17:28]}
28. g3 {[%clk 0:31:10]}  Kg7 {[%clk 0:13:47]} 29. Re3 {[%clk 0:28:08]}  a5 {[%clk 0:09:39]} 30. a3 {[%clk 0:19:12]}  Rb5 {[%clk 0:07:53]}
31. Rf1 {[%clk 0:16:04]}  Rf6 {[%clk 0:06:07]} 32. Ref3 {[%clk 0:14:01]}  Rh6 {[%clk 0:04:23]} 33. Nd7 {[%clk 0:13:36]}  Rb7 {[%clk 0:04:16]}
34. Ne5 {[%clk 0:13:34]}  Rh8 {[%clk 0:01:07]} 35. Nxc6 {[%clk 0:08:58]}  Ra8 {[%clk 0:01:12]} 36. Rc3 {[%clk 0:05:57]}  Rc8 {[%clk 0:00:40]}
37. Rfc1 {[%clk 0:05:20]}  Rxc6 {[%clk 0:00:38]} 38. Rxc6 {[%clk 0:05:39]}  Rxb3 {[%clk 0:01:05]} 39. g4 {[%clk 0:04:16]}  hxg4 {[%clk 0:01:27]}
40. hxg4 {[%clk 0:04:39]}  Bxg4 {[%clk 0:01:31]} 41. R6c3 {[%clk 0:04:29]}  Rxc3 {[%clk 0:21:54]} 42. Rxc3 {[%clk 0:34:52]}  Kf6 {[%clk 0:21:54]}
43. Kg3 {[%clk 0:34:51]}  Bd1 {[%clk 0:17:59]} 44. Kf4 {[%clk 0:34:37]}  a4 {[%clk 0:14:51]} 45. Rh3 {[%clk 0:34:47]}  Bc2 {[%clk 0:13:39]}
46. Rh6+ {[%clk 0:35:02]}  Bg6 {[%clk 0:12:00]} 47. Kg4 {[%clk 0:35:15]}  Kf7 {[%clk 0:05:46]} 48. Kg5 {[%clk 0:35:19]}  Be4 {[%clk 0:05:12]}
49. Kf4 {[%clk 0:35:39]}  Ke7 {[%clk 0:05:12]} 50. Ke5 {[%clk 0:35:53]}  Bf5 {[%clk 0:05:35]} 51. Rh2 {[%clk 0:35:32]}  Kd7 {[%clk 0:04:52]}
52. Rb2 {[%clk 0:35:52]}  Kc6 {[%clk 0:04:12]} 53. Rb4 {[%clk 0:36:08]}  Bc2 {[%clk 0:04:08]} 54. Kxe6 {[%clk 0:36:24]}  Bb3 {[%clk 0:04:24]}
55. Rb8 {[%clk 0:36:35]}  Bc4 {[%clk 0:03:40]} 56. Rc8+ {[%clk 0:36:39]}  Kb7 {[%clk 0:02:08]} 57. Rc5 {[%clk 0:36:57]}  Kb6 {[%clk 0:01:39]}
58. Kd6 {[%clk 0:37:18]}  Bb3 {[%clk 0:01:27]} 59. Rxd5 {[%clk 0:37:03]}  Bxd5 {[%clk 0:01:52]} 60. Kxd5 {[%clk 0:37:26]}  Kb5 {[%clk 0:02:14]}
61. Ke6 {[%clk 0:36:34]}  Kc4 {[%clk 0:02:30]} 62. d5 {[%clk 0:36:44]}  Kb3 {[%clk 0:02:57]} 63. d6 {[%clk 0:36:54]}  Kxa3 {[%clk 0:03:22]}
64. d7 {[%clk 0:37:18]}  Kb2 {[%clk 0:03:25]} 65. d8=Q {[%clk 0:37:41]}  a3 {[%clk 0:03:51]} 66. Qd4+ {[%clk 0:38:01]}  Kb1 {[%clk 0:04:08]}
67. Qb4+ {[%clk 0:38:24]} 1-0

[Event "2026 European Womens Championship"]
[Site "Batumi, GE"]
[Date "2026.05.29"]
[Round "5"]
[White "Klek, Hanna Marie"]
[Black "Huseynova, Lala"]
[Result "1-0"]
[Board "86"]
[TimeControl "5400+30"]
[WhiteFideId "24670057"]
[BlackFideId "13431781"]
[WhiteElo "2369"]
[BlackElo "2149"]
[WhiteTitle "WGM"]
[BlackTitle "WFM"]
[WhiteClock "0:11:03"]
[BlackClock "0:05:07"]
[Variant "Standard"]

1. e4 {[%clk 1:30:57]}  c5 {[%clk 1:30:30]} 2. Nf3 {[%clk 1:31:20]}  d6 {[%clk 1:30:46]} 3. d4 {[%clk 1:31:44]}  cxd4 {[%clk 1:30:50]}
4. Nxd4 {[%clk 1:32:07]}  Nf6 {[%clk 1:31:14]} 5. Nc3 {[%clk 1:32:31]}  a6 {[%clk 1:31:40]} 6. Bd3 {[%clk 1:32:56]}  Nc6 {[%clk 1:26:46]}
7. Nxc6 {[%clk 1:33:11]}  bxc6 {[%clk 1:27:04]} 8. b3 {[%clk 1:33:34]}  g6 {[%clk 1:20:18]} 9. Bb2 {[%clk 1:32:08]}  Bg7 {[%clk 1:18:50]}
10. Qd2 {[%clk 1:30:38]}  O-O {[%clk 1:16:38]} 11. O-O-O {[%clk 1:30:28]}  Qa5 {[%clk 1:10:52]} 12. Kb1 {[%clk 1:28:02]}  Rd8 {[%clk 1:08:52]}
13. h3 {[%clk 1:23:01]}  Kf8 {[%clk 0:56:30]} 14. f4 {[%clk 1:18:50]}  d5 {[%clk 0:49:54]} 15. e5 {[%clk 1:17:44]}  Nd7 {[%clk 0:50:04]}
16. Qf2 {[%clk 1:11:43]}  Nc5 {[%clk 0:46:21]} 17. g4 {[%clk 1:10:25]}  Bb7 {[%clk 0:37:03]} 18. Rhe1 {[%clk 1:01:02]}  Nxd3 {[%clk 0:35:29]}
19. Rxd3 {[%clk 0:57:55]}  c5 {[%clk 0:33:24]} 20. f5 {[%clk 0:56:53]}  Kg8 {[%clk 0:29:04]} 21. Ne2 {[%clk 0:47:49]}  d4 {[%clk 0:26:43]}
22. Nf4 {[%clk 0:47:11]}  c4 {[%clk 0:15:08]} 23. Rxd4 {[%clk 0:35:01]}  c3 {[%clk 0:14:43]} 24. Ra4 {[%clk 0:34:01]}  Rd2 {[%clk 0:14:22]}
25. Qg3 {[%clk 0:28:44]}  Qd8 {[%clk 0:13:19]} 26. Bxc3 {[%clk 0:28:25]}  Rd1+ {[%clk 0:13:45]} 27. Kb2 {[%clk 0:28:01]}  Rc8 {[%clk 0:13:38]}
28. Nd3 {[%clk 0:24:24]}  Rxe1 {[%clk 0:13:48]} 29. Qxe1 {[%clk 0:24:42]}  Qd5 {[%clk 0:12:07]} 30. f6 {[%clk 0:21:59]}  exf6 {[%clk 0:10:45]}
31. exf6 {[%clk 0:22:22]}  Bf8 {[%clk 0:09:41]} 32. Rd4 {[%clk 0:21:36]}  Qg2 {[%clk 0:09:36]} 33. h4 {[%clk 0:19:59]}  h6 {[%clk 0:08:16]}
34. Qd2 {[%clk 0:16:42]}  Qh1 {[%clk 0:06:35]} 35. g5 {[%clk 0:16:49]}  h5 {[%clk 0:07:02]} 36. Ne5 {[%clk 0:16:36]}  Be4 {[%clk 0:06:53]}
37. Rxe4 {[%clk 0:11:07]}  Rxc3 {[%clk 0:04:07]} 38. Re1 {[%clk 0:09:13]}  Qh3 {[%clk 0:04:03]} 39. Qd7 {[%clk 0:08:23]}  Qxd7 {[%clk 0:02:55]}
40. Nxd7 {[%clk 0:08:46]}  Rc8 {[%clk 0:02:52]} 41. Nxf8 {[%clk 0:09:01]}  Kxf8 {[%clk 0:03:18]} 42. c4 {[%clk 0:09:19]}  Rd8 {[%clk 0:03:36]}
43. Kc3 {[%clk 0:09:39]}  a5 {[%clk 0:04:03]} 44. a3 {[%clk 0:09:37]}  Ra8 {[%clk 0:04:20]} 45. c5 {[%clk 0:09:57]}  Rb8 {[%clk 0:03:58]}
46. Kc4 {[%clk 0:09:58]}  Ra8 {[%clk 0:04:19]} 47. c6 {[%clk 0:10:18]}  Rc8 {[%clk 0:04:43]} 48. Kc5 {[%clk 0:10:41]}  Rd8 {[%clk 0:05:07]}
49. c7 {[%clk 0:11:03]} 1-0

[Event "2026 European Womens Championship"]
[Site "Batumi, GE"]
[Date "2026.05.29"]
[Round "5"]
[White "Maisuradze, Nino"]
[Black "Bulmaga, Irina"]
[Result "0-1"]
[Board "87"]
[TimeControl "5400+30"]
[WhiteFideId "13601717"]
[BlackFideId "13903063"]
[WhiteElo "2198"]
[BlackElo "2361"]
[WhiteTitle "WGM"]
[BlackTitle "IM"]
[WhiteClock "0:27:02"]
[BlackClock "1:00:15"]
[Variant "Standard"]

1. d4 {[%clk 1:27:28]}  Nf6 {[%clk 1:30:52]} 2. c4 {[%clk 1:27:57]}  e6 {[%clk 1:31:13]} 3. Nc3 {[%clk 1:28:22]}  Bb4 {[%clk 1:31:36]}
4. e3 {[%clk 1:28:33]}  O-O {[%clk 1:31:52]} 5. Nge2 {[%clk 1:28:59]}  Re8 {[%clk 1:32:02]} 6. a3 {[%clk 1:29:19]}  Bf8 {[%clk 1:32:24]}
7. Ng3 {[%clk 1:29:23]}  d5 {[%clk 1:32:12]} 8. Be2 {[%clk 1:28:46]}  b6 {[%clk 1:30:22]} 9. O-O {[%clk 1:26:28]}  Bb7 {[%clk 1:28:39]}
10. b4 {[%clk 1:21:50]}  c5 {[%clk 1:13:20]} 11. bxc5 {[%clk 1:17:08]}  bxc5 {[%clk 1:13:30]} 12. Rb1 {[%clk 1:14:03]}  Bc6 {[%clk 1:12:13]}
13. cxd5 {[%clk 1:03:30]}  exd5 {[%clk 1:07:35]} 14. dxc5 {[%clk 1:02:16]}  Bxc5 {[%clk 1:06:12]} 15. Qc2 {[%clk 0:55:48]}  Nbd7 {[%clk 1:04:17]}
16. Na4 {[%clk 0:53:54]}  Bxa4 {[%clk 1:01:43]} 17. Qxa4 {[%clk 0:53:18]}  Nb6 {[%clk 0:57:32]} 18. Qa5 {[%clk 0:48:00]}  Rc8 {[%clk 0:52:41]}
19. Bb2 {[%clk 0:23:23]}  Nc4 {[%clk 0:45:37]} 20. Qxd8 {[%clk 0:23:26]}  Rexd8 {[%clk 0:45:58]} 21. Bxc4 {[%clk 0:22:55]}  dxc4 {[%clk 0:46:20]}
22. Rfc1 {[%clk 0:15:27]}  Rb8 {[%clk 0:40:46]} 23. Bxf6 {[%clk 0:11:13]}  Rxb1 {[%clk 0:39:10]} 24. Rxb1 {[%clk 0:11:42]}  gxf6 {[%clk 0:39:31]}
25. a4 {[%clk 0:06:02]}  Ba3 {[%clk 0:35:14]} 26. Ne2 {[%clk 0:00:33]}  Bb2 {[%clk 0:34:56]} 27. g4 {[%clk 0:00:34]}  c3 {[%clk 0:34:16]}
28. Kg2 {[%clk 0:00:37]}  Rd2 {[%clk 0:34:02]} 29. Nxc3 {[%clk 0:00:32]}  Bxc3 {[%clk 0:34:24]} 30. Rb3 {[%clk 0:00:32]}  Rc2 {[%clk 0:33:40]}
31. Rb8+ {[%clk 0:00:45]}  Kg7 {[%clk 0:34:54]} 32. Rc8 {[%clk 0:01:09]}  a5 {[%clk 0:34:49]} 33. Kf3 {[%clk 0:00:54]}  Rc1 {[%clk 0:35:01]}
34. Ke4 {[%clk 0:01:03]}  Bd2 {[%clk 0:35:11]} 35. Rxc1 {[%clk 0:00:41]}  Bxc1 {[%clk 0:35:37]} 36. Kf5 {[%clk 0:01:08]}  Bb2 {[%clk 0:34:08]}
37. f4 {[%clk 0:01:00]}  Bc1 {[%clk 0:32:33]} 38. e4 {[%clk 0:01:18]}  h6 {[%clk 0:31:23]} 39. h4 {[%clk 0:01:34]}  Bd2 {[%clk 0:31:20]}
40. e5 {[%clk 0:01:00]}  fxe5 {[%clk 0:31:34]} 41. fxe5 {[%clk 0:26:53]}  Be1 {[%clk 1:01:32]} 42. h5 {[%clk 0:27:02]}  Bd2 {[%clk 1:00:15]} 0-1

[Event "2026 European Womens Championship"]
[Site "Batumi, GE"]
[Date "2026.05.29"]
[Round "5"]
[White "Brunello, Marina"]
[Black "Jimenez Fernandez, Rebeca"]
[Result "1/2-1/2"]
[Board "88"]
[TimeControl "5400+30"]
[WhiteFideId "822590"]
[BlackFideId "32070934"]
[WhiteElo "2346"]
[BlackElo "2166"]
[WhiteTitle "IM"]
[BlackTitle "WFM"]
[WhiteClock "0:23:11"]
[BlackClock "0:06:14"]
[Variant "Standard"]

1. e4 {[%clk 1:30:45]}  c6 {[%clk 1:30:56]} 2. d4 {[%clk 1:31:08]}  d5 {[%clk 1:31:21]} 3. e5 {[%clk 1:30:58]}  Bf5 {[%clk 1:31:44]}
4. Nf3 {[%clk 1:31:26]}  e6 {[%clk 1:32:08]} 5. Be2 {[%clk 1:31:48]}  Nd7 {[%clk 1:32:30]} 6. Nbd2 {[%clk 1:30:47]}  h6 {[%clk 1:32:46]}
7. Nf1 {[%clk 1:30:42]}  Ne7 {[%clk 1:22:14]} 8. Ng3 {[%clk 1:18:57]}  Bh7 {[%clk 1:20:35]} 9. Nh5 {[%clk 1:15:42]}  Qc7 {[%clk 0:59:24]}
10. O-O {[%clk 1:05:02]}  O-O-O {[%clk 0:52:51]} 11. c4 {[%clk 0:57:43]}  dxc4 {[%clk 0:46:53]} 12. Bd2 {[%clk 0:57:38]}  Be4 {[%clk 0:44:23]}
13. Bxc4 {[%clk 0:54:59]}  Nf5 {[%clk 0:38:00]} 14. Re1 {[%clk 0:43:44]}  Bxf3 {[%clk 0:35:03]} 15. Qxf3 {[%clk 0:44:09]}  Nb6 {[%clk 0:33:37]}
16. Ba5 {[%clk 0:42:13]}  Rxd4 {[%clk 0:29:20]} 17. Re4 {[%clk 0:38:43]}  Qd7 {[%clk 0:27:48]} 18. Bxb6 {[%clk 0:34:36]}  axb6 {[%clk 0:27:58]}
19. Ng3 {[%clk 0:30:27]}  Nxg3 {[%clk 0:24:09]} 20. hxg3 {[%clk 0:30:52]}  Bc5 {[%clk 0:21:39]} 21. a4 {[%clk 0:30:30]}  Rxe4 {[%clk 0:20:45]}
22. Qxe4 {[%clk 0:30:50]}  Qd4 {[%clk 0:20:55]} 23. Qe2 {[%clk 0:31:10]}  Rd8 {[%clk 0:20:45]} 24. Re1 {[%clk 0:29:58]}  Qd2 {[%clk 0:20:09]}
25. Qxd2 {[%clk 0:25:39]}  Rxd2 {[%clk 0:20:32]} 26. Re2 {[%clk 0:26:04]}  Rxe2 {[%clk 0:20:30]} 27. Bxe2 {[%clk 0:26:29]}  Bd4 {[%clk 0:20:56]}
28. b3 {[%clk 0:26:50]}  Bxe5 {[%clk 0:21:19]} 29. Kf1 {[%clk 0:25:38]}  Kd7 {[%clk 0:21:00]} 30. Ke1 {[%clk 0:25:35]}  Bd4 {[%clk 0:21:00]}
31. g4 {[%clk 0:23:14]}  Kd6 {[%clk 0:20:51]} 32. f3 {[%clk 0:22:14]}  Ke5 {[%clk 0:20:20]} 33. Bd3 {[%clk 0:22:23]}  g6 {[%clk 0:19:13]}
34. Ke2 {[%clk 0:19:51]}  Bc5 {[%clk 0:19:28]} 35. Bc4 {[%clk 0:19:40]}  Kd4 {[%clk 0:18:14]} 36. Kd2 {[%clk 0:19:58]}  Bb4+ {[%clk 0:18:30]}
37. Ke2 {[%clk 0:20:24]}  Bd6 {[%clk 0:18:17]} 38. Kd2 {[%clk 0:20:25]}  Bf4+ {[%clk 0:18:40]} 39. Ke2 {[%clk 0:20:51]}  Kc3 {[%clk 0:18:45]}
40. Kd1 {[%clk 0:20:13]}  Kb2 {[%clk 0:14:11]} 41. Ke2 {[%clk 0:20:28]}  Kc2 {[%clk 0:14:17]} 42. Ke1 {[%clk 0:20:48]}  h5 {[%clk 0:10:03]}
43. gxh5 {[%clk 0:20:36]}  gxh5 {[%clk 0:10:27]} 44. Ke2 {[%clk 0:20:51]}  h4 {[%clk 0:10:50]} 45. Ke1 {[%clk 0:21:08]}  Kc3 {[%clk 0:06:45]}
46. Ke2 {[%clk 0:17:04]}  Kb4 {[%clk 0:05:06]} 47. Kd1 {[%clk 0:17:10]}  Kc3 {[%clk 0:21:22]} 48. Ke2 {[%clk 0:47:28]}  Kd4 {[%clk 0:21:46]}
49. Bd3 {[%clk 0:44:31]}  Bc1 {[%clk 0:21:57]} 50. Bc4 {[%clk 0:44:16]}  Ke5 {[%clk 0:22:19]} 51. Bd3 {[%clk 0:44:24]}  Kf4 {[%clk 0:22:42]}
52. Bh7 {[%clk 0:42:25]}  Kg3 {[%clk 0:19:33]} 53. Kf1 {[%clk 0:42:48]}  f5 {[%clk 0:06:16]} 54. Bg8 {[%clk 0:24:26]}  e5 {[%clk 0:06:41]}
55. Bh7 {[%clk 0:24:41]}  f4 {[%clk 0:06:51]} 56. Be4 {[%clk 0:23:05]}  Be3 {[%clk 0:07:11]} 57. Bf5 {[%clk 0:23:29]}  Bd4 {[%clk 0:06:09]}
58. Be4 {[%clk 0:23:54]}  Bc5 {[%clk 0:04:46]} 59. Bf5 {[%clk 0:23:38]}  Bd4 {[%clk 0:05:01]} 60. Be4 {[%clk 0:24:04]}  h3 {[%clk 0:05:27]}
61. gxh3 {[%clk 0:24:21]}  Kxh3 {[%clk 0:05:53]} 62. Bf5+ {[%clk 0:22:56]}  Kg3 {[%clk 0:06:18]} 63. Ke2 {[%clk 0:23:11]}  Kg2 {[%clk 0:06:14]} 1/2-1/2